fUSD/lending_fUSD_20250510
["ID","MTS","AMOUNT","RATE_DAILY","PERIOD"]
[360619963,1746906648386,-400.0,0.00019742,2]
[360619964,1746906648395,-400.0,0.00019742,2]
[360619965,1746906648405,-400.0,0.00019742,2]
[360619966,1746906648414,-400.0,0.00019742,2]
[360619967,1746906648424,-504.17,0.00019742,2]
[360619968,1746906648434,-400.0,0.00019742,2]
[360619969,1746906648444,-554.87,0.00019742,2]
[360619970,1746906648454,-480.89,0.00019742,2]
[360619971,1746906648463,-400.0,0.00019742,2]
[360619972,1746906648472,-400.0,0.00019742,2]
[360619973,1746906648482,-400.0,0.00019742,2]
[360619974,1746906648492,-400.0,0.00019742,2]
[360619975,1746906648501,-400.0,0.00019742,2]
[360619976,1746906648511,-400.0,0.00019742,2]
[360619977,1746906648520,-400.0,0.00019742,2]
[360619978,1746906648531,-242.25783501,0.00019742,2]
[360619979,1746906648542,-1219.96,0.00019742,2]
[360619980,1746906648553,-400.0,0.00019742,2]
[360619981,1746906648563,-400.0,0.00019742,2]
[360619982,1746906648572,-400.0,0.00019742,2]
[360619983,1746906648582,-400.0,0.00019742,2]
[360619984,1746906648592,-2658.53,0.00019742,2]
[360619985,1746906648602,-400.0,0.00019742,2]
[360619986,1746906648611,-1055.08,0.00019742,2]
[360619987,1746906648622,-995.39,0.00019742,2]
[360619996,1746906648766,-400.0,0.00019742,2]
[360619998,1746906648775,-1301.55,0.00019742,2]
[360620000,1746906648785,-423.95,0.00019742,2]
[360620002,1746906648795,-400.0,0.00019742,2]
[360620004,1746906648805,-400.0,0.00019742,2]
[360620006,1746906648814,-1503.25,0.00019742,2]
[360620008,1746906648824,-712.83,0.00019742,2]
[360620010,1746906648833,-400.0,0.00019742,2]
[360620012,1746906648843,-400.0,0.00019742,2]
[360620014,1746906648852,-400.0,0.00019742,2]
[360620016,1746906648862,-400.0,0.00019742,2]
[360620017,1746906648871,-400.0,0.00019742,2]
[360620018,1746906648880,-400.0,0.00019742,2]
[360620019,1746906648889,-400.0,0.00019742,2]
[360620020,1746906648898,-569.87,0.00019742,2]
[360620021,1746906648907,-400.0,0.00019742,2]
[360620022,1746906648917,-400.0,0.00019742,2]
[360620023,1746906648926,-506.03,0.00019742,2]
[360620024,1746906648936,-400.0,0.00019742,2]
[360620025,1746906648945,-400.0,0.00019742,2]
[360620026,1746906648954,-400.0,0.00019742,2]
[360620027,1746906648963,-400.0,0.00019742,2]
[360620028,1746906648972,-450.86,0.00019742,2]
[360620029,1746906648981,-400.0,0.00019742,2]
[360620030,1746906648991,-400.0,0.00019742,2]
[360620031,1746906649001,-400.0,0.00019742,2]
[360620032,1746906649011,-400.0,0.00019742,2]
[360620033,1746906649020,-400.0,0.00019742,2]
[360620034,1746906649030,-400.0,0.00019742,2]
[360620035,1746906649039,-400.0,0.00019742,2]
[360620036,1746906649048,-400.0,0.00019742,2]
[360620037,1746906649058,-400.0,0.00019742,2]
[360620038,1746906649067,-400.0,0.00019742,2]
[360620040,1746906649077,-1011.96,0.00019742,2]
[360620042,1746906649086,-400.0,0.00019742,2]
[360620044,1746906649096,-400.0,0.00019742,2]
[360620046,1746906649105,-698.59,0.00019742,2]
[360620048,1746906649114,-400.0,0.00019742,2]
[360620050,1746906649123,-400.0,0.00019742,2]
[360620052,1746906649133,-400.0,0.00019742,2]
[360620054,1746906649142,-400.0,0.00019742,2]
[360620056,1746906649152,-1000.0,0.00019742,2]
[360620058,1746906649162,-500.0,0.00019742,2]
[360620060,1746906649171,-400.0,0.00019742,2]
[360620062,1746906649181,-400.0,0.00019742,2]
[360620063,1746906649191,-400.0,0.00019742,2]
[360620065,1746906649200,-1435.83,0.00019742,2]
[360620067,1746906649210,-400.0,0.00019742,2]
[360620069,1746906649220,-400.0,0.00019742,2]
[360620071,1746906649229,-400.0,0.00019742,2]
[360620074,1746906649239,-400.0,0.00019742,2]
[360620076,1746906649248,-400.0,0.00019742,2]
[360620078,1746906649257,-400.0,0.00019742,2]
[360620079,1746906649267,-400.0,0.00019743,2]
[360620082,1746906649276,-450.52268217,0.00019743,2]
[360620084,1746906649286,-189.37899796,0.00019743,2]
[360620085,1746906649295,-151.79159116,0.00019743,2]
[360620087,1746906649304,-400.0,0.00019743,2]
[360620089,1746906649314,-400.0,0.00019743,2]
[360620091,1746906649323,-400.0,0.00019743,2]
[360620093,1746906649333,-400.0,0.00019743,2]
[360620095,1746906649342,-400.0,0.00019743,2]
[360620097,1746906649351,-400.0,0.00019743,2]
[360620099,1746906649361,-400.0,0.00019743,2]
[360620102,1746906649370,-400.0,0.00019743,2]
[360620103,1746906649379,-400.0,0.00019743,2]
[360620105,1746906649389,-400.0,0.00019743,2]
[360620107,1746906649398,-400.0,0.00019743,2]
[360620109,1746906649407,-450.0,0.00019743,2]
[360620111,1746906649417,-400.0,0.00019743,2]
[360620113,1746906649426,-686.3,0.00019743,2]
[360620115,1746906649435,-400.0,0.00019743,2]
[360620117,1746906649444,-400.0,0.00019743,2]
[360620119,1746906649454,-688.22,0.00019743,2]
[360620121,1746906649464,-400.0,0.00019743,2]
[360620123,1746906649474,-400.0,0.00019743,2]
[360620125,1746906649483,-537.71,0.00019743,2]
[360620127,1746906649493,-400.0,0.00019743,2]
[360620129,1746906649502,-400.0,0.00019743,2]
[360620131,1746906649511,-400.0,0.00019743,2]
[360620133,1746906649521,-400.0,0.00019743,2]
[360620135,1746906649531,-400.0,0.00019743,2]
[360620137,1746906649541,-400.0,0.00019743,2]
[360620139,1746906649551,-400.0,0.00019743,2]
[360620141,1746906649561,-400.0,0.00019743,2]
[360620143,1746906649571,-400.0,0.00019743,2]
[360620145,1746906649580,-400.0,0.00019743,2]
[360620147,1746906649590,-400.0,0.00019743,2]
[360620149,1746906649599,-400.0,0.00019743,2]
[360620151,1746906649609,-400.0,0.00019743,2]
[360620153,1746906649619,-400.0,0.00019743,2]
[360620154,1746906649631,-400.0,0.00019743,2]
[360620157,1746906649640,-444.7,0.00019743,2]
[360620158,1746906649650,-400.0,0.00019743,2]
[360620160,1746906649659,-400.0,0.00019743,2]
[360620163,1746906649669,-17165.23,0.00019743,2]
[360620165,1746906649679,-400.0,0.00019743,2]
[360620167,1746906649688,-400.0,0.00019743,2]
[360620168,1746906649698,-400.0,0.00019743,2]
[360620170,1746906649707,-400.0,0.00019743,2]
[360620172,1746906649716,-400.0,0.00019743,2]
[360620175,1746906649726,-400.0,0.00019743,2]
[360620176,1746906649736,-400.0,0.00019743,2]
[360620178,1746906649746,-1128.67,0.00019743,2]
[360620180,1746906649756,-400.0,0.00019743,2]
[360620182,1746906649766,-907.62,0.00019743,2]
[360620184,1746906649776,-400.0,0.00019743,2]
[360620186,1746906649786,-659.03,0.00019743,2]
[360620188,1746906649796,-637.54,0.00019743,2]
[360620190,1746906649806,-974.55,0.00019743,2]
[360620192,1746906649815,-400.0,0.00019743,2]
[360620194,1746906649824,-400.0,0.00019743,2]
[360620196,1746906649833,-400.0,0.00019743,2]
[360620198,1746906649842,-400.0,0.00019743,2]
[360620200,1746906649852,-400.0,0.00019743,2]
[360620202,1746906649862,-1375.97,0.00019743,2]
[360620204,1746906649871,-734.46,0.00019743,2]
[360620206,1746906649880,-400.0,0.00019743,2]
[360620208,1746906649891,-446.3,0.00019743,2]
[360620210,1746906649900,-400.0,0.00019743,2]
[360620212,1746906649910,-400.0,0.00019743,2]
[360620213,1746906649919,-400.0,0.00019743,2]
[360620215,1746906649929,-1642.69,0.00019743,2]
[360620217,1746906649938,-400.0,0.00019743,2]
[360620219,1746906649947,-400.0,0.00019743,2]
[360620221,1746906649957,-400.0,0.00019743,2]
[360620223,1746906649966,-668.39,0.00019743,2]
[360620225,1746906649975,-400.0,0.00019743,2]
[360620227,1746906649984,-526.13,0.00019743,2]
[360620229,1746906649992,-400.0,0.00019743,2]
[360620231,1746906650001,-401.65,0.00019743,2]
[360620233,1746906650010,-400.0,0.00019743,2]
[360620235,1746906650019,-2775.45,0.00019743,2]
[360620237,1746906650029,-178.30728332,0.00019744,2]
[360620239,1746906650038,-691.71,0.00019744,2]
[360620241,1746906650047,-1228.95,0.00019744,2]
[360620243,1746906650056,-400.0,0.00019744,2]
[360620245,1746906650066,-1709.86,0.00019744,2]
[360620247,1746906650075,-400.0,0.00019744,2]
[360620249,1746906650084,-400.0,0.00019744,2]
[360620251,1746906650094,-400.0,0.00019744,2]
[360620253,1746906650104,-613.75,0.00019744,2]
[360620254,1746906650113,-400.0,0.00019744,2]
[360620256,1746906650122,-696.2,0.00019744,2]
[360620258,1746906650132,-1836.78,0.00019744,2]
[360620260,1746906650141,-400.0,0.00019744,2]
[360620262,1746906650151,-1315.08,0.00019744,2]
[360620264,1746906650160,-400.0,0.00019744,2]
[360620266,1746906650170,-3133.53,0.00019744,2]
[360620268,1746906650179,-400.0,0.00019744,2]
[360620270,1746906650188,-3137.53,0.00019744,2]
[360620272,1746906650198,-400.0,0.00019744,2]
[360620274,1746906650207,-400.0,0.00019744,2]
[360620276,1746906650216,-400.0,0.00019744,2]
[360620278,1746906650225,-400.0,0.00019744,2]
[360620280,1746906650234,-1694.72,0.00019744,2]
[360620282,1746906650245,-9751.76,0.00019744,2]
[360620284,1746906650254,-400.0,0.00019744,2]
[360620286,1746906650263,-400.0,0.00019744,2]
[360620288,1746906650272,-400.0,0.00019744,2]
[360620290,1746906650281,-701.35,0.00019744,2]
[360620292,1746906650291,-400.0,0.00019744,2]
[360620294,1746906650300,-400.0,0.00019744,2]
[360620296,1746906650309,-5501.11,0.00019744,2]
[360620298,1746906650319,-9038.65,0.00019744,2]
[360620300,1746906650328,-400.0,0.00019744,2]
[360620301,1746906650337,-2406.72,0.00019744,2]
[360620303,1746906650350,-2079.58,0.00019744,2]
[360620305,1746906650359,-174.81079379,0.00019754,2]
[360620307,1746906650368,-160.89227997,0.00019758,2]
[360620309,1746906650377,-150.0,0.00019761,2]
[360620311,1746906650387,-150.0,0.00019762,2]
[360620313,1746906650397,-4106.47988493,0.00019766,2]
[360620315,1746906650406,-200.0,0.0001977,2]
[360620317,1746906650416,-500.0,0.00019773,2]
[360620319,1746906650425,-500.0,0.00019773,2]
[360620321,1746906650434,-500.0,0.00019773,2]
[360620323,1746906650443,-556.86010887,0.00019773,2]
[360620325,1746906650452,-500.0,0.00019773,2]
[360620327,1746906650461,-500.0,0.00019773,2]
[360620329,1746906650470,-500.0,0.00019773,2]
[360620331,1746906650479,-500.0,0.00019773,2]
[360620333,1746906650488,-300.0,0.00019773,2]
[360620335,1746906650499,-200.0,0.00019773,2]
[360620337,1746906650508,-150.0,0.0001978,2]
[360620339,1746906650518,-200.0,0.00019786,2]
[360620341,1746906650527,-150.0,0.00019798,2]
[360620343,1746906650538,-743.7828,0.000198,2]
[360620345,1746906650550,-298.87576,0.000198,23]
[360620347,1746906650559,-1000.0,0.000198,2]
[360620349,1746906650569,-160.89227997,0.00019805,2]
[360620351,1746906650578,-1791.07640479,0.00019805,2]
[360620353,1746906650588,-272.6168204,0.00019816,2]
[360620355,1746906650598,-272.6168204,0.00019816,2]
[360620357,1746906650607,-150.0,0.00019822,2]
[360620359,1746906650617,-150.0,0.00019829,2]
[360620361,1746906650626,-1791.07640479,0.00019831,2]
[360620363,1746906650636,-150.0,0.00019835,2]
[360620365,1746906650645,-150.0,0.00019839,2]
[360620367,1746906650654,-200.0,0.00019844,2]
[360620369,1746906650663,-200.0,0.00019845,2]
[360620371,1746906650674,-150.0,0.00019849,2]
[360620373,1746906650683,-160.89227997,0.00019853,2]
[360620375,1746906650692,-150.0,0.00019857,2]
[360620377,1746906650701,-1791.07640479,0.00019858,2]
[360620378,1746906650711,-166.55221696,0.00019863,2]
[360620380,1746906650721,-200.0,0.00019864,2]
[360620382,1746906650731,-250.0,0.00019864,2]
[360620384,1746906650740,-180.76117596,0.00019864,2]
[360620386,1746906650750,-174.81079379,0.00019864,2]
[360620388,1746906650759,-150.0,0.00019874,2]
[360620390,1746906650768,-180.76117595,0.00019882,2]
[360620392,1746906650777,-12500.0,0.00019882,2]
[360620394,1746906650788,-272.6168204,0.00019889,2]
[360620396,1746906650798,-200.0,0.00019891,2]
[360620399,1746906650807,-12500.0,0.00019891,2]
[360620400,1746906650817,-9282.1072,0.00019895,2]
[360620402,1746906650826,-150.0,0.00019896,2]
[360620404,1746906650836,-4106.47988493,0.00019899,2]
[360620406,1746906650846,-200.0,0.000199,2]
[360620408,1746906650856,-7264.09773694,0.000199,2]
[360620410,1746906650865,-12500.0,0.000199,2]
[360620412,1746906650873,-3601.5684944,0.000199,2]
[360620414,1746906650883,-156.2064523,0.000199,2]
[360620416,1746906650892,-180.76117595,0.000199,2]
[360620418,1746906650902,-160.89227997,0.000199,2]
[360620420,1746906650911,-170.59198864,0.000199,2]
[360620422,1746906650920,-178.738579,0.000199,2]
[360620424,1746906650929,-151.0,0.000199,2]
[360620426,1746906650939,-151.0,0.000199,2]
[360620428,1746906650948,-151.0,0.000199,2]
[360620430,1746906650957,-150.0,0.00019912,2]
[360620432,1746906650967,-150.0,0.00019913,2]
[360620434,1746906650976,-150.0,0.00019916,2]
[360620436,1746906650985,-150.0,0.00019919,2]
[360620438,1746906650994,-150.0,0.00019925,2]
[360620440,1746906651003,-150.0,0.0001993,2]
[360620442,1746906651012,-150.0,0.00019933,2]
[360620444,1746906651021,-150.0,0.00019937,2]
[360620445,1746906651030,-170.64766694,0.00019954,2]
[360620447,1746906651040,-150.0,0.00019954,2]
[360620449,1746906651049,-6723.57058661,0.0001996,2]
[360620452,1746906651059,-400.0,0.00019962,2]
[360620454,1746906651068,-466.55,0.00019962,2]
[360620455,1746906651079,-400.0,0.00019962,2]
[360620457,1746906651088,-400.0,0.00019962,2]
[360620459,1746906651098,-400.0,0.00019962,2]
[360620462,1746906651109,-400.0,0.00019962,2]
[360620464,1746906651119,-400.0,0.00019962,2]
[360620465,1746906651128,-400.0,0.00019962,2]
[360620468,1746906651138,-400.0,0.00019962,2]
[360620482,1746906651147,-433.58455788,0.00019962,2]
[360620485,1746906651287,-400.0,0.00019962,2]
[360620487,1746906651297,-400.0,0.00019962,2]
[360620489,1746906651306,-400.0,0.00019962,2]
[360620490,1746906651316,-400.0,0.00019962,2]
[360620491,1746906651325,-400.0,0.00019962,2]
[360620492,1746906651334,-400.0,0.00019962,2]
[360620493,1746906651344,-400.0,0.00019962,2]
[360620494,1746906651353,-400.0,0.00019962,2]
[360620495,1746906651362,-400.0,0.00019962,2]
[360620496,1746906651371,-400.0,0.00019962,2]
[360620497,1746906651380,-400.0,0.00019962,2]
[360620498,1746906651389,-400.0,0.00019962,2]
[360620500,1746906651398,-400.0,0.00019962,2]
[360620501,1746906651407,-400.0,0.00019962,2]
[360620503,1746906651417,-400.0,0.00019962,2]
[360620506,1746906651426,-325.23,0.00019962,2]
[360620508,1746906651436,-400.0,0.00019962,2]
[360620510,1746906651446,-400.0,0.00019962,2]
[360620512,1746906651458,-400.0,0.00019962,2]
[360620513,1746906651468,-400.0,0.00019962,2]
[360620515,1746906651477,-400.0,0.00019962,2]
[360620518,1746906651487,-400.0,0.00019962,2]
[360620520,1746906651497,-468.69185577,0.00019962,2]
[360620522,1746906651507,-400.0,0.00019962,2]
[360620524,1746906651517,-400.0,0.00019962,2]
[360620526,1746906651526,-478.34,0.00019962,2]
[360620528,1746906651535,-153.05877687,0.00019962,2]
[360620530,1746906651548,-400.0,0.00019962,2]
[360620532,1746906651557,-400.0,0.00019962,2]
[360620534,1746906651566,-313.10007095,0.00019962,2]
[360620536,1746906651575,-250.0,0.00019962,2]
[360620537,1746906651586,-363.07,0.00019962,2]
[360620539,1746906651596,-400.0,0.00019962,2]
[360620542,1746906651606,-400.0,0.00019962,2]
[360620544,1746906651616,-400.0,0.00019962,2]
[360620546,1746906651626,-400.0,0.00019962,2]
[360620548,1746906651635,-400.0,0.00019962,2]
[360620550,1746906651644,-252.79502795,0.00019962,2]
[360620552,1746906651654,-400.0,0.00019962,2]
[360620553,1746906651663,-400.0,0.00019962,2]
[360620556,1746906651673,-400.0,0.00019962,2]
[360620558,1746906651682,-400.0,0.00019962,2]
[360620560,1746906651691,-400.0,0.00019962,2]
[360620562,1746906651700,-400.0,0.00019962,2]
[360620564,1746906651710,-229.23801752,0.00019962,2]
[360620565,1746906651720,-400.0,0.00019962,2]
[360620567,1746906651729,-400.0,0.00019962,2]
[360620569,1746906651739,-400.0,0.00019962,2]
[360620572,1746906651748,-300.4334175,0.00019962,2]
[360620573,1746906651758,-400.0,0.00019962,2]
[360620575,1746906651767,-400.0,0.00019962,2]
[360620578,1746906651776,-400.0,0.00019962,2]
[360620579,1746906651786,-400.0,0.00019962,2]
[360620582,1746906651795,-400.0,0.00019962,2]
[360620584,1746906651804,-400.0,0.00019962,2]
[360620586,1746906651814,-400.0,0.00019962,2]
[360620587,1746906651823,-416.99185373,0.00019962,2]
[360620589,1746906651832,-400.0,0.00019962,2]
[360620591,1746906651841,-400.0,0.00019962,2]
[360620593,1746906651851,-405.37722844,0.00019962,2]
[360620596,1746906651860,-400.0,0.00019962,2]
[360620598,1746906651870,-400.0,0.00019962,2]
[360620600,1746906651879,-400.0,0.00019962,2]
[360620602,1746906651889,-400.0,0.00019962,2]
[360620604,1746906651898,-400.0,0.00019962,2]
[360620606,1746906651907,-252.43,0.00019962,2]
[360620608,1746906651917,-400.0,0.00019962,2]
[360620610,1746906651926,-400.0,0.00019962,2]
[360620612,1746906651935,-400.0,0.00019962,2]
[360620614,1746906651944,-400.0,0.00019962,2]
[360620616,1746906651954,-400.0,0.00019962,2]
[360620618,1746906651964,-400.0,0.00019962,2]
[360620619,1746906651974,-400.0,0.00019962,2]
[360620622,1746906651984,-400.0,0.00019962,2]
[360620624,1746906651993,-400.0,0.00019962,2]
[360620626,1746906652002,-192.75326272,0.00019962,2]
[360620628,1746906652012,-322.41284507,0.00019962,2]
[360620630,1746906652022,-400.0,0.00019962,2]
[360620632,1746906652032,-400.0,0.00019962,2]
[360620634,1746906652042,-400.0,0.00019962,2]
[360620636,1746906652051,-400.36811444,0.00019962,2]
[360620638,1746906652060,-400.0,0.00019962,2]
[360620640,1746906652069,-400.0,0.00019962,2]
[360620642,1746906652079,-400.0,0.00019962,2]
[360620644,1746906652088,-400.0,0.00019962,2]
[360620646,1746906652097,-400.0,0.00019962,2]
[360620648,1746906652106,-400.0,0.00019962,2]
[360620650,1746906652115,-400.0,0.00019962,2]
[360620652,1746906652124,-400.0,0.00019962,2]
[360620654,1746906652133,-400.0,0.00019962,2]
[360620656,1746906652143,-1435.83,0.00019962,2]
[360620658,1746906652152,-400.0,0.00019962,2]
[360620660,1746906652161,-400.0,0.00019962,2]
[360620662,1746906652171,-463.51,0.00019962,2]
[360620664,1746906652180,-408.21644947,0.00019962,2]
[360620666,1746906652191,-336.36970499,0.00019962,2]
[360620668,1746906652201,-394.97,0.00019962,2]
[360620670,1746906652210,-400.0,0.00019963,2]
[360620672,1746906652220,-400.0,0.00019963,2]
[360620674,1746906652229,-400.0,0.00019963,2]
[360620676,1746906652239,-203.46,0.00019963,2]
[360620678,1746906652248,-400.0,0.00019963,2]
[360620680,1746906652258,-400.0,0.00019963,2]
[360620682,1746906652267,-150.0,0.00019963,2]
[360620684,1746906652277,-400.0,0.00019963,2]
[360620686,1746906652286,-325.99,0.00019963,2]
[360620688,1746906652296,-400.0,0.00019963,2]
[360620690,1746906652306,-400.0,0.00019963,2]
[360620692,1746906652315,-400.0,0.00019963,2]
[360620694,1746906652325,-400.0,0.00019963,2]
[360620696,1746906652337,-400.0,0.00019963,2]
[360620698,1746906652347,-400.0,0.00019963,2]
[360620700,1746906652357,-400.0,0.00019963,2]
[360620702,1746906652367,-400.0,0.00019963,2]
[360620704,1746906652377,-400.0,0.00019963,2]
[360620706,1746906652386,-400.0,0.00019963,2]
[360620708,1746906652395,-400.0,0.00019963,2]
[360620710,1746906652405,-400.0,0.00019963,2]
[360620712,1746906652414,-158.17480541,0.00019963,2]
[360620714,1746906652423,-400.0,0.00019963,2]
[360620716,1746906652433,-491.85498439,0.00019963,2]
[360620718,1746906652442,-400.0,0.00019963,2]
[360620720,1746906652452,-514.56,0.00019963,2]
[360620722,1746906652461,-400.0,0.00019963,2]
[360620724,1746906652470,-400.0,0.00019963,2]
[360620726,1746906652479,-400.0,0.00019963,2]
[360620728,1746906652489,-400.0,0.00019963,2]
[360620730,1746906652499,-400.0,0.00019963,2]
[360620732,1746906652508,-400.0,0.00019963,2]
[360620734,1746906652517,-400.0,0.00019963,2]
[360620736,1746906652529,-400.0,0.00019963,2]
[360620738,1746906652540,-400.0,0.00019963,2]
[360620740,1746906652555,-400.0,0.00019963,2]
[360620742,1746906652564,-400.0,0.00019963,2]
[360620744,1746906652573,-400.0,0.00019963,2]
[360620746,1746906652584,-400.0,0.00019963,2]
[360620748,1746906652593,-400.0,0.00019963,2]
[360620750,1746906652603,-400.0,0.00019963,2]
[360620752,1746906652612,-400.0,0.00019963,2]
[360620754,1746906652622,-400.0,0.00019963,2]
[360620756,1746906652632,-400.0,0.00019963,2]
[360620758,1746906652641,-400.0,0.00019963,2]
[360620760,1746906652651,-400.0,0.00019963,2]
[360620762,1746906652661,-400.0,0.00019963,2]
[360620764,1746906652671,-400.0,0.00019963,2]
[360620766,1746906652680,-400.0,0.00019963,2]
[360620768,1746906652689,-400.0,0.00019963,2]
[360620770,1746906652699,-400.0,0.00019963,2]
[360620772,1746906652709,-400.0,0.00019963,2]
[360620774,1746906652718,-400.0,0.00019963,2]
[360620776,1746906652728,-400.0,0.00019963,2]
[360620777,1746906652737,-400.0,0.00019963,2]
[360620779,1746906652747,-400.0,0.00019963,2]
[360620781,1746906652756,-400.0,0.00019963,2]
[360620783,1746906652766,-400.0,0.00019963,2]
[360620785,1746906652775,-400.0,0.00019963,2]
[360620787,1746906652784,-408.65467646,0.00019963,2]
[360620789,1746906652794,-400.0,0.00019963,2]
[360620791,1746906652803,-400.0,0.00019963,2]
[360620793,1746906652813,-400.0,0.00019963,2]
[360620795,1746906652822,-400.0,0.00019963,2]
[360620797,1746906652833,-400.0,0.00019963,2]
[360620799,1746906652843,-400.0,0.00019963,2]
[360620801,1746906652852,-400.0,0.00019963,2]
[360620803,1746906652861,-400.0,0.00019963,2]
[360620805,1746906652871,-846.17,0.00019963,2]
[360620807,1746906652880,-400.0,0.00019963,2]
[360620809,1746906652889,-400.0,0.00019963,2]
[360620811,1746906652899,-536.3,0.00019963,2]
[360620812,1746906652907,-400.0,0.00019963,2]
[360620814,1746906652917,-400.0,0.00019963,2]
[360620816,1746906652926,-400.0,0.00019963,2]
[360620818,1746906652936,-400.0,0.00019963,2]
[360620820,1746906652945,-400.0,0.00019963,2]
[360620822,1746906652955,-400.0,0.00019963,2]
[360620824,1746906652965,-400.0,0.00019963,2]
[360620826,1746906652976,-559.25,0.00019963,2]
[360620828,1746906652986,-400.0,0.00019963,2]
[360620830,1746906652996,-726.42,0.00019963,2]
[360620832,1746906653005,-400.0,0.00019963,2]
[360620834,1746906653015,-600.87,0.00019963,2]
[360620836,1746906653024,-400.0,0.00019963,2]
[360620838,1746906653034,-400.0,0.00019963,2]
[360620840,1746906653044,-400.0,0.00019963,2]
[360620842,1746906653053,-504.17,0.00019963,2]
[360620844,1746906653064,-400.0,0.00019963,2]
[360620845,1746906653073,-554.87,0.00019963,2]
[360620847,1746906653083,-480.89,0.00019963,2]
[360620849,1746906653092,-400.0,0.00019963,2]
[360620851,1746906653101,-400.0,0.00019963,2]
[360620853,1746906653111,-400.0,0.00019963,2]
[360620855,1746906653121,-386.55120737,0.00019963,2]
[360620857,1746906653130,-400.0,0.00019963,2]
[360620859,1746906653140,-400.0,0.00019963,2]
[360620861,1746906653151,-400.0,0.00019963,2]
[360620863,1746906653161,-1219.96,0.00019963,2]
[360620865,1746906653171,-400.0,0.00019963,2]
[360620867,1746906653181,-400.0,0.00019963,2]
[360620869,1746906653190,-686.3,0.00019963,2]
[360620871,1746906653199,-400.0,0.00019963,2]
[360620873,1746906653209,-400.0,0.00019963,2]
[360620875,1746906653218,-2658.53,0.00019963,2]
[360620877,1746906653228,-400.0,0.00019963,2]
[360620879,1746906653237,-400.0,0.00019963,2]
[360620881,1746906653247,-1055.08,0.00019963,2]
[360620883,1746906653256,-688.22,0.00019963,2]
[360620885,1746906653266,-400.0,0.00019963,2]
[360620887,1746906653277,-995.39,0.00019963,2]
[360620889,1746906653286,-400.0,0.00019963,2]
[360620891,1746906653296,-400.0,0.00019963,2]
[360620893,1746906653305,-400.0,0.00019963,2]
[360620895,1746906653314,-1301.55,0.00019963,2]
[360620897,1746906653323,-400.0,0.00019963,2]
[360620899,1746906653332,-423.95,0.00019963,2]
[360620901,1746906653342,-400.0,0.00019963,2]
[360620903,1746906653352,-400.0,0.00019963,2]
[360620905,1746906653361,-400.0,0.00019963,2]
[360620906,1746906653370,-400.0,0.00019963,2]
[360620908,1746906653380,-400.0,0.00019963,2]
[360620910,1746906653390,-400.0,0.00019963,2]
[360620912,1746906653400,-1503.25,0.00019963,2]
[360620914,1746906653409,-712.83,0.00019963,2]
[360620916,1746906653419,-400.0,0.00019963,2]